bitfinex/quotes_BTCUSD_20220212
["timestamp","ask_amount","ask_price","bid_price","bid_amount"]
[1644660553734,0.26958419,42346.0,42345.0,0.424382]
[1644660553936,0.26958419,42346.0,42345.0,0.524382]
[1644660554335,0.26958419,42346.0,42345.0,0.83690467]
[1644660555436,0.26958419,42346.0,42345.0,0.50662267]
[1644660557487,0.26958419,42346.0,42345.0,0.1441]
[1644660557885,0.26958419,42346.0,42345.0,0.0441]
[1644660558285,0.26958419,42346.0,42345.0,0.38872656]
[1644660558683,0.26958419,42346.0,42345.0,0.48872656]
[1644660559586,0.26958419,42346.0,42345.0,0.43872656]
[1644660562653,0.26951146,42346.0,42345.0,0.0441]
[1644660562849,0.26951146,42346.0,42344.0,0.08284769]
[1644660564985,0.26999725,42346.0,42344.0,0.08284769]
[1644660570837,0.26999725,42346.0,42344.0,0.14189419]
[1644660573387,0.26999725,42346.0,42344.0,0.08284769]
[1644660574588,0.26999725,42346.0,42344.0,0.14798323]
[1644660575636,0.26999725,42346.0,42345.0,0.0529]
[1644660579782,0.26793198,42346.0,42345.0,0.0529]
[1644660586989,0.26785193,42346.0,42345.0,0.0529]
[1644660589792,0.26785193,42346.0,42345.0,0.0546448]
[1644660589793,0.26593808,42346.0,42345.0,0.0546448]
[1644660590037,0.26593808,42346.0,42345.0,0.0017448]
[1644660594891,0.26593808,42346.0,42344.0,0.07959177]
[1644660595088,0.26593808,42346.0,42345.0,0.0017448]
[1644660600146,0.26844393,42346.0,42344.0,0.00023368]
[1644660600347,0.26844393,42346.0,42343.0,0.00023368]
[1644660600548,0.26844393,42346.0,42343.0,0.00053975]
[1644660600746,0.26844393,42346.0,42343.0,0.00077343]
[1644660601393,0.26844393,42346.0,42343.0,0.00023368]
[1644660601593,0.26844393,42346.0,42342.0,0.00053976]
[1644660602590,0.26844393,42346.0,42343.0,0.07535639]
[1644660603193,0.26844393,42346.0,42343.0,0.07559007]
[1644660603391,0.26844393,42346.0,42345.0,0.21304257]
[1644660605341,0.26844393,42346.0,42345.0,0.20864257]
[1644660606542,0.26844393,42346.0,42345.0,0.26154257]
[1644660610697,0.26844393,42346.0,42345.0,0.59182457]
[1644660610895,0.26844393,42346.0,42345.0,0.26154257]
[1644660618197,0.26844393,42346.0,42345.0,0.64791252]
[1644660618400,0.26844393,42346.0,42345.0,0.41763052]
[1644660620044,0.00053966,42351.0,42345.0,0.41763052]
[1644660620045,0.00063966,42351.0,42346.0,0.7]
[1644660620248,0.00053966,42351.0,42347.0,0.0529]
[1644660620646,0.00024614,42356.0,42347.0,0.0529]
[1644660620846,0.00024614,42354.0,42349.0,0.07085081]
[1644660621050,0.00053968,42351.0,42350.0,0.12046827]
[1644660621848,0.00034614,42356.0,42350.0,0.12046827]
[1644660622049,0.00034614,42356.0,42355.0,0.2488788]
[1644660622249,0.27413908,42356.0,42355.0,0.2488788]
[1644660624895,0.09567581,42349.0,42348.0,0.07292873]
[1644660629644,0.09567581,42349.0,42348.0,0.12582873]
[1644660630047,0.09567581,42349.0,42348.0,0.12753146]
[1644660635172,0.09567581,42349.0,42348.0,0.12582873]
[1644660642542,0.09567581,42349.0,42348.0,0.0529]
[1644660644849,0.09567581,42349.0,42348.0,0.12471782]
[1644660647596,0.0955568,42349.0,42348.0,0.12471782]
[1644660660455,0.0955568,42349.0,42346.0,0.01351222]
[1644660660456,0.01116082,42347.0,42346.0,0.01401328]
[1644660660858,0.01116082,42347.0,42346.0,1.75320695]
[1644660661060,0.01116082,42347.0,42346.0,1.40165384]
[1644660661310,0.01116082,42347.0,42346.0,1.66883596]
[1644660661505,0.01116082,42347.0,42346.0,1.6683349]
[1644660661906,0.01116082,42347.0,42346.0,1.3380529]
[1644660662126,0.01116082,42347.0,42346.0,1.31294074]
[1644660662306,0.01116082,42347.0,42346.0,1.41401589]
[1644660669798,0.01116082,42347.0,42346.0,1.41393214]
[1644660672401,0.01116082,42347.0,42346.0,1.76541595]
[1644660672649,0.01116082,42347.0,42346.0,1.76541247]
[1644660673948,0.0110379,42347.0,42346.0,1.76541247]
[1644660676304,0.0110379,42347.0,42346.0,1.75360347]
[1644660678304,0.0110379,42347.0,42346.0,1.45211966]
[1644660682149,0.0110379,42347.0,42346.0,1.4270135]
[1644660684400,0.0110379,42347.0,42346.0,1.3270135]
[1644660685300,0.0110379,42347.0,42346.0,1.32539403]
[1644660685698,0.0110379,42347.0,42346.0,1.37539403]
[1644660689251,0.0110379,42347.0,42346.0,0.71369403]
[1644660689749,0.0110379,42347.0,42346.0,0.54651191]
[1644660691149,0.0110379,42347.0,42346.0,0.87679391]
[1644660691403,0.0110379,42347.0,42346.0,0.76369403]
[1644660691604,0.0110379,42347.0,42346.0,0.59651191]
[1644660694206,0.01094009,42347.0,42346.0,0.59651191]
[1644660695152,0.01094009,42347.0,42346.0,0.59815222]
[1644660698654,0.01094009,42347.0,42346.0,0.92843422]
[1644660698898,0.01094009,42347.0,42346.0,0.59815222]
[1644660699099,0.01094009,42347.0,42346.0,1.09561634]
[1644660699297,0.01094009,42347.0,42346.0,0.92843422]
[1644660699500,0.01094009,42347.0,42346.0,1.09561634]
[1644660699696,0.01094009,42347.0,42346.0,0.59815222]
[1644660699896,0.01094009,42347.0,42346.0,0.76533434]
[1644660700097,0.01094009,42347.0,42346.0,0.59815222]
[1644660702102,0.01094009,42347.0,42346.0,0.92843422]
[1644660702299,0.01094009,42347.0,42346.0,0.59815222]
[1644660702753,0.01094009,42347.0,42346.0,0.54815222]
[1644660704454,0.01094009,42347.0,42346.0,0.87843422]
[1644660704653,0.01094009,42347.0,42346.0,0.54815222]
[1644660704854,0.01094009,42347.0,42346.0,0.71369403]
[1644660705054,0.01094009,42347.0,42346.0,0.54651191]
[1644660705455,0.01094009,42347.0,42346.0,0.87679391]
[1644660705756,0.01094009,42347.0,42346.0,0.54651191]
[1644660705954,0.01094009,42347.0,42346.0,1.04397603]
[1644660706158,0.01094009,42347.0,42346.0,0.54651191]
[1644660706400,0.01094009,42347.0,42346.0,0.71369403]
[1644660706601,0.01094009,42347.0,42346.0,0.54651191]
[1644660709000,0.01094009,42347.0,42346.0,0.8385635]
[1644660709803,0.01094009,42347.0,42346.0,0.54651191]
[1644660711353,0.01094009,42347.0,42346.0,0.59651191]
[1644660712553,0.01094009,42347.0,42346.0,0.32886551]
[1644660712953,0.01094009,42347.0,42346.0,0.22886551]
[1644660713154,0.01094009,42347.0,42346.0,0.32886551]
[1644660714244,0.01094009,42347.0,42346.0,0.22886551]
[1644660714437,0.01094009,42347.0,42346.0,0.32886551]
[1644660715040,0.01094009,42347.0,42346.0,0.33030078]
[1644660715439,0.01094009,42347.0,42346.0,0.23030078]
[1644660715641,0.01094009,42347.0,42346.0,0.33030078]
[1644660715939,0.01087597,42347.0,42346.0,0.33030078]
[1644660718050,0.01087597,42347.0,42346.0,0.23030078]
[1644660718251,0.01087597,42347.0,42346.0,0.33030078]
[1644660718852,0.01087597,42347.0,42346.0,0.66058278]
[1644660719254,0.01087597,42347.0,42346.0,0.33030078]
[1644660719451,0.01087597,42347.0,42346.0,0.23030078]
[1644660719653,0.01087597,42347.0,42346.0,0.4974829]
[1644660719952,0.01087597,42347.0,42346.0,0.33030078]
[1644660720355,0.01087597,42347.0,42346.0,0.28030078]
[1644660720554,0.01087597,42347.0,42346.0,0.20433527]
[1644660720758,0.01087597,42347.0,42346.0,0.10433527]
[1644660721154,0.01087597,42347.0,42346.0,0.05433527]
[1644660725251,0.01087597,42347.0,42346.0,0.0529]
[1644660733653,0.01087597,42347.0,42346.0,0.43009868]
[1644660733856,0.01087597,42347.0,42346.0,0.53009868]
[1644660734654,0.01087597,42347.0,42346.0,0.43009868]
[1644660734858,0.01087597,42347.0,42346.0,0.0529]
[1644660737404,0.01076976,42347.0,42346.0,0.0529]
[1644660741056,0.01076976,42347.0,42346.0,0.45575113]
[1644660743460,0.00050145,42351.0,42346.0,0.45575113]
[1644660743659,0.00024614,42349.0,42346.0,0.40444753]
[1644660743906,0.00050145,42351.0,42346.0,0.40444753]
[1644660744109,0.00050145,42351.0,42349.0,0.30132931]
[1644660744306,0.00034614,42355.0,42349.0,0.30132931]
[1644660744506,0.00034614,42355.0,42349.0,0.52339185]
[1644660744707,0.00050146,42352.0,42349.0,0.52339185]
[1644660745608,0.00034614,42355.0,42349.0,0.52339185]
[1644660745808,0.00050146,42353.0,42352.0,0.07019725]
[1644660746708,0.00034614,42355.0,42352.0,0.07019725]
[1644660746908,0.00060963,42355.0,42352.0,0.07019725]
[1644660748060,0.00034614,42355.0,42352.0,0.07019725]
[1644660748258,0.00034614,42355.0,42352.0,0.07011328]
[1644660749561,0.00024614,42355.0,42352.0,0.07011328]
[1644660749764,0.00026349,42356.0,42352.0,0.07011328]
[1644660749961,0.00024614,42355.0,42352.0,0.07156144]
[1644660750163,0.00026349,42356.0,42352.0,0.07156144]
[1644660750361,0.00024614,42355.0,42352.0,0.07156144]
[1644660750565,0.00024614,42356.0,42352.0,0.07156144]
[1644660750764,0.00050097,42356.0,42352.0,0.07156144]
[1644660751619,0.00034614,42359.0,42352.0,0.07156144]
[1644660751820,0.00052172,42356.0,42352.0,0.07156144]
[1644660752220,0.00052172,42356.0,42352.0,0.37289075]
[1644660752418,0.00052172,42356.0,42352.0,0.07156144]
[1644660752820,0.00034614,42359.0,42352.0,0.07156144]
[1644660753019,0.00034614,42359.0,42352.0,0.07146144]
[1644660753222,0.00052172,42356.0,42352.0,0.07146144]
[1644660754018,0.00034614,42359.0,42352.0,0.07146144]
[1644660754218,0.00052172,42356.0,42352.0,0.07146144]
[1644660755259,0.00034614,42359.0,42352.0,0.0718301]
[1644660755457,0.00049958,42356.0,42352.0,0.0718301]
[1644660757562,0.00024614,42360.0,42352.0,0.0718301]
[1644660757763,0.00049958,42356.0,42352.0,0.0718301]
[1644660758064,0.00049958,42356.0,42353.0,0.0529]
[1644660758662,0.00074572,42356.0,42353.0,0.0529]
[1644660758913,0.00024614,42358.0,42356.0,0.23042325]
[1644660759105,0.30537717,42355.0,42354.0,0.19324146]
[1644660759307,0.30547717,42355.0,42354.0,0.19324146]
[1644660759504,0.30547717,42355.0,42354.0,0.24614146]
[1644660760105,0.30537717,42355.0,42354.0,0.24614146]
[1644660764973,0.30537717,42355.0,42354.0,0.24782073]
[1644660765672,0.30537717,42355.0,42354.0,0.05457927]
[1644660767811,0.30537717,42355.0,42354.0,0.00167927]
[1644660768412,0.60772051,42355.0,42354.0,0.00167927]
[1644660768811,0.50610723,42355.0,42354.0,0.00167927]
[1644660769008,0.50604177,42355.0,42354.0,0.00167927]
[1644660769409,0.30537717,42355.0,42354.0,0.00167927]
[1644660769711,0.30537717,42355.0,42346.0,0.00023754]
[1644660769908,0.29848447,42347.0,42346.0,0.00023754]
[1644660770759,0.29848447,42347.0,42345.0,0.00168136]
[1644660770957,0.29848447,42347.0,42345.0,0.00190869]
[1644660771157,0.29848447,42347.0,42345.0,0.00168136]
[1644660771158,0.26421668,42346.0,42345.0,0.00168136]
[1644660771363,0.26421668,42346.0,42345.0,0.00190869]
[1644660772159,0.26421668,42346.0,42345.0,0.00168136]
[1644660773812,0.29848447,42347.0,42346.0,0.02642166]
[1644660774607,0.23286426,42347.0,42346.0,0.02642166]
[1644660775207,0.23286426,42347.0,42346.0,0.01642166]
[1644660775609,0.57453409,42347.0,42346.0,0.01642166]
[1644660776008,0.52453409,42347.0,42346.0,0.01642166]
[1644660776611,0.58770492,42347.0,42346.0,0.01642166]
[1644660777559,0.31271007,42347.0,42346.0,0.01642166]
[1644660779161,0.31255552,42347.0,42346.0,0.01642166]
[1644660779761,0.36255552,42347.0,42346.0,0.01642166]
[1644660780163,0.36255552,42347.0,42345.0,0.00190869]
[1644660780164,0.75,42346.0,42345.0,0.00190869]
[1644660780464,0.75,42346.0,42345.0,0.00168136]
[1644660780465,1.19827565,42346.0,42345.0,0.00168136]
[1644660781514,1.09827565,42346.0,42345.0,0.00168136]
[1644660786860,1.02163134,42346.0,42345.0,0.00168136]
[1644660787558,0.31255552,42347.0,42345.0,0.00168136]
[1644660787761,0.1187,42350.0,42345.0,0.00168136]
[1644660787961,0.75347564,42352.0,42345.0,0.00168136]
[1644660787962,0.0004978,42351.0,42347.0,0.330282]
[1644660788157,0.0004978,42351.0,42345.0,0.05458136]
[1644660788820,0.06957644,42352.0,42345.0,0.05480869]
[1644660788821,0.07451447,42346.0,42345.0,0.05480869]
[1644660789012,0.07451447,42346.0,42345.0,0.05458136]
[1644660789211,0.17394053,42354.0,42345.0,0.05458136]
[1644660789413,0.06319309,42351.0,42345.0,0.05458136]
[1644660793764,0.06319309,42351.0,42346.0,0.00049816]
[1644660794865,0.06319309,42351.0,42345.0,0.05480869]
[1644660795065,0.06319309,42351.0,42346.0,0.00050681]
[1644660796066,0.17394053,42354.0,42347.0,0.23250556]
[1644660796310,0.00050673,42353.0,42347.0,0.23250556]
[1644660797312,0.07630181,42352.0,42347.0,0.23250556]
[1644660797511,0.07630181,42352.0,42347.0,0.23301237]
[1644660798111,0.07630181,42352.0,42347.0,0.00050681]
[1644660798516,0.07630181,42352.0,42345.0,0.05312733]
[1644660798710,0.07630181,42352.0,42347.0,0.00049835]
[1644660799712,0.07630181,42352.0,42346.0,0.26302892]
[1644660800060,0.30547717,42355.0,42349.0,0.00157372]
[1644660800061,0.00049828,42353.0,42349.0,0.00157372]
[1644660800258,0.00049828,42353.0,42350.0,0.0529]
[1644660800857,0.30547717,42355.0,42350.0,0.05109825]
[1644660801058,0.00049829,42354.0,42350.0,0.03268725]
[1644660801359,0.07911409,42352.0,42350.0,0.03268725]
[1644660804809,0.07911409,42352.0,42350.0,0.03032597]
[1644660805010,0.07911409,42352.0,42351.0,0.00156988]
[1644660805213,0.07935992,42352.0,42351.0,0.00156988]
[1644660805410,0.07911409,42352.0,42351.0,0.00156988]
[1644660807555,0.00034583,42353.0,42351.0,0.00156988]
[1644660807764,0.00024583,42353.0,42352.0,1.044882]
[1644660807974,0.00084481,42354.0,42352.0,0.7146]
[1644660808156,0.00084481,42354.0,42353.0,0.6617]
[1644660808157,0.00034583,42354.0,42353.0,0.6617]
[1644660808472,0.0001,42354.0,42353.0,0.7146]
[1644660808658,0.0001,42354.0,42353.0,1.12352451]
[1644660808856,0.0001,42354.0,42353.0,0.92269007]
[1644660809056,0.0001,42354.0,42353.0,1.12352451]
[1644660809257,0.0001,42354.0,42353.0,0.99339496]
[1644660809458,0.0001,42354.0,42353.0,1.19413434]
[1644660811058,3.919e-05,42354.0,42353.0,1.19413434]
[1644660811315,3.919e-05,42354.0,42353.0,1.19413123]
[1644660811509,3.919e-05,42354.0,42353.0,1.12342634]
[1644660813810,3.919e-05,42354.0,42353.0,1.19264071]
[1644660814615,3.919e-05,42354.0,42353.0,0.99190444]
[1644660815061,3.919e-05,42354.0,42353.0,0.99327959]
[1644660816065,3.919e-05,42354.0,42353.0,1.19396535]
[1644660816264,0.305623,42355.0,42353.0,1.19396535]
[1644660816265,0.30566219,42355.0,42353.0,1.19396535]
[1644660816664,0.30537717,42355.0,42353.0,1.19396535]
[1644660816867,0.30566219,42355.0,42353.0,1.19396535]
[1644660817268,0.30566219,42355.0,42353.0,0.99327959]
[1644660817868,0.30537717,42355.0,42353.0,0.99327959]
[1644660818069,0.30566219,42355.0,42353.0,0.99327959]
[1644660819009,0.30487717,42355.0,42353.0,0.99327959]
[1644660819408,0.30516219,42355.0,42353.0,0.99327959]
[1644660820008,0.305123,42355.0,42353.0,0.99327959]
[1644660820209,0.30487717,42355.0,42353.0,0.99327959]
[1644660820611,0.305123,42355.0,42353.0,0.99327959]
[1644660821410,0.30487717,42355.0,42353.0,0.99327959]
[1644660821611,0.305123,42355.0,42353.0,0.99327959]
[1644660822660,0.30487717,42355.0,42353.0,0.99327959]
[1644660822859,0.305123,42355.0,42353.0,0.99327959]
[1644660823759,0.30487717,42355.0,42353.0,0.99327959]
[1644660824159,0.305123,42355.0,42353.0,0.99327959]
[1644660825061,0.30487717,42355.0,42353.0,0.99327959]
[1644660825263,0.305123,42355.0,42353.0,0.27867959]
[1644660825462,0.25716501,42352.0,42348.0,0.27150892]
[1644660825662,0.25716501,42352.0,42351.0,0.21934342]
[1644660825866,0.25716501,42352.0,42349.0,0.05]
[1644660826063,0.25716501,42352.0,42348.0,0.211809]
[1644660826710,0.25716501,42352.0,42348.0,0.011809]
[1644660826912,0.25716501,42352.0,42347.0,0.42956794]
[1644660827110,0.25716501,42352.0,42347.0,0.22891031]
[1644660827310,0.25716501,42352.0,42347.0,0.22841158]
[1644660827511,0.25716501,42352.0,42347.0,0.22891018]
[1644660828515,0.25716501,42352.0,42347.0,0.22841158]
[1644660828712,0.25716501,42352.0,42347.0,0.22891018]
[1644660829116,0.26365979,42351.0,42347.0,0.22891018]
[1644660829717,0.26480759,42351.0,42347.0,0.22841158]
[1644660829918,0.26480759,42351.0,42347.0,0.22891018]
[1644660830161,0.0011478,42351.0,42347.0,0.22891018]
[1644660830562,0.26451514,42351.0,42347.0,0.22891018]
[1644660830765,0.26451514,42351.0,42347.0,0.22841158]
[1644660830960,0.26451514,42351.0,42347.0,0.2289102]
[1644660831163,0.0011478,42351.0,42347.0,0.2289102]
[1644660832061,0.0011478,42351.0,42347.0,0.22841158]
[1644660832260,0.0011478,42351.0,42347.0,0.2289102]
[1644660832460,0.26912415,42351.0,42347.0,0.2289102]
[1644660833260,0.26912415,42351.0,42347.0,0.22841158]
[1644660833811,0.0011478,42351.0,42347.0,0.22841158]
[1644660834012,0.26437585,42351.0,42347.0,0.22841158]
[1644660835012,0.0011478,42351.0,42347.0,0.22841158]
[1644660835813,0.0011478,42351.0,42347.0,0.22890803]
[1644660836812,0.0011478,42351.0,42347.0,0.22841158]
[1644660837112,0.0011478,42351.0,42347.0,0.22890803]
[1644660838160,0.0011478,42351.0,42347.0,0.22841158]
[1644660838360,0.0011478,42351.0,42347.0,0.22891961]
[1644660838963,0.0011478,42351.0,42348.0,0.20065763]
[1644660842011,0.0011478,42351.0,42349.0,0.20065763]
[1644660842216,0.00034996,42351.0,42349.0,0.0529]
[1644660842812,0.00034996,42351.0,42349.0,0.30394305]
[1644660843811,0.00034996,42351.0,42349.0,0.25367191]
[1644660844011,0.00034996,42351.0,42349.0,0.0529]
[1644660845259,0.00114657,42351.0,42349.0,0.0529]
[1644660845458,0.00114657,42351.0,42349.0,0.25367191]
[1644660847263,0.00114657,42351.0,42349.0,0.0529]
[1644660847660,0.00114657,42351.0,42348.0,0.20077191]
[1644660848662,0.00114657,42351.0,42348.0,0.25981398]
[1644660848916,0.00114657,42351.0,42349.0,0.20077191]
[1644660849715,0.25716501,42352.0,42349.0,0.20077191]
[1644660853163,0.25716501,42352.0,42351.0,0.18077191]
[1644660853564,0.25716501,42352.0,42351.0,0.33077191]
[1644660853762,0.25716501,42352.0,42351.0,0.15]
[1644660854666,0.25716501,42352.0,42349.0,0.30394305]
[1644660856510,0.25716501,42352.0,42349.0,0.0529]
[1644660856710,0.25716501,42352.0,42351.0,0.15]
[1644660857710,0.25716501,42352.0,42350.0,0.15]
[1644660858521,0.25716501,42352.0,42351.0,0.0529]
[1644660858714,0.25716501,42352.0,42351.0,0.2029]
[1644660859614,0.25716501,42352.0,42351.0,0.0529]
[1644660861761,0.25716501,42352.0,42351.0,0.2029]
[1644660863664,0.25716501,42352.0,42351.0,0.0529]
[1644660864113,0.25716501,42352.0,42351.0,0.0502]
[1644660865613,0.25716501,42352.0,42351.0,0.2002]
[1644660866617,0.25716501,42352.0,42351.0,0.40104939]
[1644660866814,0.25716501,42352.0,42351.0,0.2002]
[1644660868461,0.25716501,42352.0,42351.0,0.45124305]
[1644660869761,0.75,42351.0,42348.0,0.46824594]
[1644660869965,0.75,42351.0,42348.0,0.07516932]
[1644660869966,0.05,42349.0,42348.0,0.07516932]
[1644660870163,0.50034155,42350.0,42347.0,0.00049689]
[1644660870364,0.25324155,42349.0,42347.0,0.00049689]
[1644660870565,0.3,42348.0,42342.0,0.00022733]
[1644660870768,0.3,42348.0,42330.0,0.12032152]
[1644660870769,0.65638247,42347.0,42346.0,0.00049688]
[1644660870960,0.7371866,42347.0,42346.0,0.00049688]
[1644660871814,0.53686568,42347.0,42339.0,0.00022733]
[1644660872111,0.53686568,42347.0,42344.0,0.00049689]
[1644660872909,0.53686568,42347.0,42339.0,0.00022733]
[1644660873113,0.53686568,42347.0,42343.0,0.0004969]
[1644660874112,0.53686568,42347.0,42338.0,0.00022733]
[1644660874310,0.53686568,42347.0,42343.0,0.0004969]
[1644660874712,0.34194111,42347.0,42343.0,0.0004969]
[1644660874910,0.3529,42348.0,42343.0,0.0004969]
[1644660875165,0.3529,42348.0,42346.0,0.00153227]
[1644660875365,0.27910544,42347.0,42346.0,0.00153227]
[1644660880012,0.27910544,42347.0,42345.0,0.00022733]
[1644660880212,0.27910544,42347.0,42344.0,0.00152419]
[1644660880413,0.27910544,42347.0,42344.0,0.00202108]
[1644660881412,0.27910544,42347.0,42344.0,0.00152419]
[1644660881811,0.27910544,42347.0,42344.0,0.00175152]
[1644660882319,0.2572042,42352.0,42346.0,0.330282]
[1644660882564,0.2572042,42352.0,42346.0,0.0529]
[1644660882763,0.25716501,42352.0,42346.0,0.0529]
[1644660882963,0.2572042,42352.0,42346.0,0.0529]
[1644660883364,0.2572042,42352.0,42346.0,0.05312733]
[1644660883765,0.06480846,42351.0,42346.0,0.05312733]
[1644660883966,0.06480846,42351.0,42347.0,0.00049688]
[1644660884965,0.06480846,42351.0,42346.0,0.05312733]
[1644660885266,0.06480846,42351.0,42347.0,0.00049688]
[1644660885565,0.26048973,42344.0,42343.0,0.19659299]
[1644660889421,0.26048973,42344.0,42343.0,0.24949299]
[1644660890072,0.26048973,42344.0,42343.0,0.53667762]
[1644660890275,0.26264357,42344.0,42343.0,1.62865962]
[1644660890474,0.26264357,42344.0,42343.0,1.29837762]
[1644660893574,0.26264357,42344.0,42343.0,1.29337762]
[1644660895919,0.26264357,42344.0,42343.0,1.28837762]
[1644660900993,0.26264357,42344.0,42343.0,1.28859977]
[1644660901614,0.26264357,42344.0,42343.0,1.00141514]
[1644660902817,0.26264357,42344.0,42343.0,1.28705438]
[1644660908071,0.26264357,42344.0,42343.0,1.00141514]
[1644660909011,0.26264357,42344.0,42343.0,1.15569646]
[1644660909414,0.26264357,42344.0,42343.0,1.30997778]
[1644660911312,0.26180857,42344.0,42343.0,1.30997778]
[1644660912414,0.26184776,42344.0,42343.0,1.30997778]
[1644660915468,0.26246696,42344.0,42343.0,1.30997778]
[1644660917013,0.26246696,42344.0,42343.0,1.61117935]
[1644660918114,0.26156515,42344.0,42343.0,1.61117935]
[1644660920080,0.26247277,42344.0,42343.0,1.61117935]
[1644660920478,0.26060414,42344.0,42343.0,1.61117935]
[1644660923815,0.26060414,42344.0,42343.0,1.30997778]
[1644660925516,0.26151205,42344.0,42343.0,1.30997778]
[1644660925916,0.26151205,42344.0,42343.0,1.61128554]
[1644660926919,0.26151205,42344.0,42343.0,1.30997778]
[1644660929068,0.26060414,42344.0,42343.0,1.7461637]
[1644660929269,0.26060414,42344.0,42343.0,2.0764457]
[1644660929868,0.26060414,42344.0,42343.0,1.7461637]
[1644660930374,0.26183828,42344.0,42343.0,1.7461637]
[1644660930970,0.26183828,42344.0,42343.0,1.39464452]
[1644660931170,0.26183828,42344.0,42343.0,1.74619018]
[1644660931618,0.26183828,42344.0,42343.0,1.39464452]
[1644660935268,0.25956791,42344.0,42343.0,1.39464452]
[1644660936770,0.00046334,42351.0,42348.0,0.011809]
[1644660936968,0.00046334,42351.0,42349.0,0.0529]
[1644660937368,0.00046334,42351.0,42350.0,0.15428132]
[1644660937570,0.00046334,42351.0,42350.0,0.36146264]
[1644660937770,0.00024583,42355.0,42350.0,0.69477835]
[1644660937971,0.00046336,42353.0,42350.0,0.69477835]
[1644660939021,0.20056675,42356.0,42350.0,0.15890284]
[1644660939221,0.00046336,42354.0,42350.0,0.41005994]
[1644660939422,0.00046336,42354.0,42350.0,0.32335337]
[1644660939621,0.00046336,42354.0,42350.0,0.07219627]
[1644660939821,0.00070919,42354.0,42350.0,0.07219627]
[1644660940223,0.00024583,42354.0,42349.0,0.2511571]
[1644660940422,0.00046336,42354.0,42349.0,0.45613314]
[1644660940622,0.00070919,42354.0,42349.0,0.45613314]
[1644660941424,0.00024583,42354.0,42349.0,0.45613314]
[1644660941624,0.00046336,42354.0,42349.0,0.45613314]
[1644660941924,0.00080919,42354.0,42350.0,0.2511571]
[1644660942124,0.00046336,42354.0,42350.0,0.2511571]
[1644660942581,0.00034583,42355.0,42352.0,0.06776081]
[1644660942782,0.00046335,42354.0,42352.0,0.06776081]
[1644660943382,0.00070918,42354.0,42352.0,0.06776081]
[1644660943581,0.00046335,42354.0,42352.0,0.06776081]
[1644660943782,0.00034583,42356.0,42352.0,0.06776081]
[1644660944081,0.00046335,42355.0,42352.0,0.06776081]
[1644660944285,0.00046335,42355.0,42351.0,0.2511571]
[1644660944484,0.00046335,42355.0,42348.0,0.2511571]
[1644660944485,0.20032092,42354.0,42348.0,0.2511571]
[1644660944683,0.0001,42353.0,42347.0,0.2511571]
[1644660944883,0.20066675,42353.0,42347.0,0.2511571]
[1644660945083,0.0001,42352.0,42347.0,0.2511571]
[1644660945385,0.24689058,42351.0,42347.0,0.2511571]
[1644660945581,0.0001,42350.0,42347.0,0.2511571]
[1644660948425,0.28784086,42349.0,42346.0,0.2511571]
[1644660948633,0.0001,42348.0,42346.0,0.2511571]
[1644660948826,0.0001,42348.0,42345.0,0.00046343]
[1644660949226,0.19868409,42348.0,42345.0,0.00046343]
[1644660949427,0.28784086,42349.0,42345.0,0.00046343]
[1644660949428,0.0001,42347.0,42345.0,0.00046343]
[1644660949731,0.20042092,42348.0,42342.0,0.00022215]
[1644660949927,0.0001,42347.0,42344.0,0.00046343]
[1644660950964,0.0001,42348.0,42341.0,0.00022215]
[1644660951169,0.0001,42348.0,42343.0,0.00046343]
[1644660951367,0.43794403,42344.0,42343.0,0.00046343]
[1644660951566,0.73799815,42344.0,42343.0,0.00046343]
[1644660952168,0.73799815,42344.0,42337.0,0.00022215]
[1644660952366,0.08057345,42340.0,42335.0,0.30160714]
[1644660952566,0.0001,42342.0,42335.0,0.30138499]
[1644660952866,0.0001,42343.0,42335.0,0.30160714]
[1644660953269,0.0001,42343.0,42335.0,0.00022215]
[1644660953468,0.0001,42343.0,42337.0,0.00046346]
[1644660953825,0.06809918,42343.0,42337.0,0.00046346]
[1644660954018,0.0001,42342.0,42337.0,0.00046346]
[1644660954617,0.0001,42342.0,42335.0,0.00022215]
[1644660954618,0.20133664,42342.0,42335.0,0.00022215]
[1644660954817,0.29320621,42341.0,42337.0,0.00046346]
[1644660955817,0.29320621,42341.0,42334.0,0.00022215]
[1644660956016,0.29320621,42341.0,42337.0,0.00046347]
[1644660957017,0.29310621,42341.0,42334.0,0.00022215]
[1644660957220,0.29320621,42341.0,42337.0,0.00046347]
[1644660957418,0.29310621,42341.0,42337.0,0.00046347]
[1644660957666,0.29320621,42341.0,42337.0,0.00046347]
[1644660957866,0.29310621,42341.0,42337.0,0.00046347]
[1644660958067,0.29320621,42341.0,42334.0,0.00022215]
[1644660958266,0.29310621,42341.0,42337.0,0.00046347]
[1644660958466,0.29320621,42341.0,42337.0,0.00046347]
[1644660958667,0.29310621,42341.0,42337.0,0.00046347]
[1644660958866,0.29320621,42341.0,42337.0,0.00046347]
[1644660959069,0.29310621,42341.0,42337.0,0.00046347]
[1644660959268,0.29251821,42341.0,42336.0,0.00022215]
[1644660959467,0.29241821,42341.0,42337.0,0.00046347]
[1644660959667,0.29251821,42341.0,42337.0,0.00046347]
[1644660959868,0.29241821,42341.0,42337.0,0.00046347]
[1644660960067,0.29251821,42341.0,42337.0,0.00046347]
[1644660960268,0.0001,42340.0,42337.0,0.00046347]
[1644660960469,0.0001,42340.0,42336.0,0.00022215]
[1644660960667,0.0001,42340.0,42336.0,0.00046347]
[1644660960866,0.0001,42340.0,42336.0,0.00068562]
[1644660961723,0.0001,42340.0,42336.0,0.00022215]
[1644660961920,0.0001,42340.0,42336.0,0.00046347]
[1644660962121,0.0001,42340.0,42336.0,0.00068562]
[1644660962520,0.0001,42340.0,42336.0,0.25171004]
[1644660962721,0.0001,42343.0,42336.0,0.25171004]
[1644660962922,0.26605394,42343.0,42336.0,0.25124657]
[1644660963233,0.0001,42342.0,42337.0,0.00046347]
[1644660963421,0.0001,42342.0,42337.0,0.00068562]
[1644660963623,0.0001,42342.0,42337.0,0.00046347]
[1644660965167,0.3001,42342.0,42337.0,0.00046347]
[1644660965367,0.06455106,42343.0,42335.0,0.00022215]
[1644660965368,0.0001,42341.0,42335.0,0.00022215]
[1644660965569,0.0001,42342.0,42337.0,0.00046347]
[1644660966468,0.0001,42342.0,42333.0,0.00022215]
[1644660966668,0.0001,42342.0,42337.0,0.00046347]
[1644660967367,0.28331142,42342.0,42337.0,0.00046347]
[1644660967567,0.0001,42341.0,42337.0,0.00046347]
[1644660969021,0.0001,42341.0,42334.0,0.00022215]
[1644660969220,0.0001,42341.0,42337.0,0.00046347]
[1644660969422,0.22446033,42341.0,42337.0,0.00046347]
[1644660969626,0.0001,42340.0,42337.0,0.00046347]
[1644660970119,0.0001,42340.0,42336.0,0.00022215]
[1644660970320,0.0001,42341.0,42336.0,0.00046347]
[1644660971320,0.0001,42341.0,42335.0,0.00022215]
[1644660971519,0.0001,42341.0,42334.0,0.19196021]
[1644660971721,0.0001,42341.0,42336.0,0.00046347]
[1644660971919,0.0001,42342.0,42336.0,0.00046347]